bitfinex-derivatives/quotes_SOLF0:USTF0_20260215
["timestamp","ask_amount","ask_price","bid_price","bid_amount"]
[1771154928357,10.4383748,89.332,89.272,18.58179042]
[1771154928761,20.84521897,89.338,89.273,20.1738]
[1771154929167,279.84,89.336,89.254,124.76]
[1771154929463,279.84,89.336,89.302,10.0836]
[1771154933569,279.84,89.336,89.309,10.0828]
[1771154938570,279.84,89.336,89.254,124.76]
[1771154938571,279.84,89.336,89.317,10.0819]
[1771154939374,279.84,89.336,89.276,20.1732]
[1771154940586,261.809,89.336,89.259,156.9321]
[1771154940782,225.48,89.348,89.259,156.9321]
[1771154940980,8.40351811,89.347,89.259,156.9321]
[1771154941176,225.48,89.348,89.259,156.9321]
[1771154941783,225.48,89.348,89.323,10.0812]
[1771154942187,20.80382794,89.358,89.333,10.0801]
[1771154943281,20.80382794,89.358,89.255,33.64]
[1771154943282,20.80382794,89.358,89.339,10.0794]
[1771154944682,89.32,89.364,89.339,10.0794]
[1771154944880,20.86614699,89.368,89.339,10.0794]
[1771154945890,20.86614699,89.368,89.306,20.1663]
[1771154946692,20.86614699,89.368,89.343,10.079]
[1771154949592,20.86614699,89.368,89.334,10.08]
[1771154957895,20.86614699,89.368,89.327,10.0807]
[1771154959491,20.86614699,89.368,89.333,10.0801]
[1771154962495,20.86614699,89.368,89.34,10.0794]
[1771154962799,20.86614699,89.368,89.305,20.1666]
[1771154963806,20.86614699,89.368,89.334,10.08]
[1771154964905,20.86614699,89.368,89.335,10.0799]
[1771154968809,20.86614699,89.368,89.286,20.1708]
[1771154969009,20.86614699,89.368,89.276,89.32]
[1771154970206,20.73832938,89.366,89.276,89.32]
[1771154970408,20.73832938,89.365,89.29,20.17]
[1771154971101,20.7351822,89.363,89.325,10.081]
[1771154972206,20.72925165,89.361,89.325,10.081]
[1771154972408,20.72925165,89.359,89.325,10.081]
[1771154973310,20.72618037,89.357,89.325,10.081]
[1771154973510,20.72618037,89.355,89.325,10.081]
[1771154974206,29.03622415,89.354,89.325,10.081]
[1771154974409,20.71904937,89.352,89.325,10.081]
[1771154976203,20.71235238,89.35,89.325,10.081]
[1771154979218,8.32623546,89.349,89.325,10.081]
[1771154979416,8.32623546,89.349,89.276,89.32]
[1771154979417,20.6848196,89.369,89.33,10.0804]
[1771154979619,20.6848196,89.367,89.33,10.0804]
[1771154979811,20.6848196,89.365,89.33,10.0804]
[1771154980013,20.6848196,89.363,89.33,10.0804]
[1771154980213,10.4383748,89.375,89.33,10.0804]
[1771154980214,20.67724214,89.361,89.33,10.0804]
[1771154980419,20.67724214,89.359,89.33,10.0804]
[1771154980714,20.67724214,89.357,89.33,10.0804]
[1771154981018,20.67724214,89.355,89.33,10.0804]
[1771154981215,8.32557645,89.354,89.33,10.0804]
[1771154981410,8.32557645,89.353,89.33,10.0804]
[1771154981725,20.67436243,89.351,89.276,89.32]
[1771154981911,20.67436243,89.349,89.276,89.32]
[1771154982220,20.67436243,89.347,89.314,10.0823]
[1771154982420,20.6886225,89.345,89.314,10.0823]
[1771154996336,8.3370338,89.344,89.314,10.0823]
[1771154996642,20.6886225,89.345,89.314,10.0823]
[1771154996838,8.33703039,89.344,89.314,10.0823]
[1771154997039,20.6886225,89.345,89.314,10.0823]
[1771154997331,8.33757221,89.344,89.314,10.0823]
[1771154997545,20.6886225,89.345,89.314,10.0823]
[1771154997735,8.33757221,89.344,89.314,10.0823]
[1771154997935,20.6886225,89.345,89.314,10.0823]
[1771154998134,8.33757221,89.344,89.314,10.0823]
[1771154998339,20.6886225,89.345,89.314,10.0823]
[1771155000343,20.64633808,89.365,89.325,10.081]
[1771155000544,20.64633808,89.363,89.325,10.081]
[1771155000743,20.64633808,89.361,89.325,10.081]
[1771155000945,20.64633808,89.359,89.325,10.081]
[1771155001242,20.64633808,89.357,89.325,10.081]
[1771155001446,20.64415645,89.355,89.325,10.081]
[1771155001641,28.98201128,89.354,89.325,10.081]
[1771155001940,20.64415645,89.375,89.278,20.81100226]
[1771155002245,20.64415645,89.375,89.294,20.81100226]
[1771155002943,20.64415645,89.375,89.29,20.81100226]
[1771155003544,20.64415645,89.375,89.267,33.64]
[1771155003545,20.64415645,89.375,89.292,20.1695]
[1771155003746,20.64496538,89.366,89.274,20.81100226]
[1771155003944,20.64496538,89.366,89.277,89.32]
[1771155005740,20.64496538,89.366,89.318,10.0818]
[1771155006541,20.64496538,89.366,89.279,20.81100226]
[1771155006542,20.64496538,89.366,89.311,10.0826]
[1771155007947,20.64496538,89.366,89.279,20.81100226]
[1771155008449,20.64496538,89.366,89.277,110.13100226]
[1771155008849,20.64496538,89.366,89.278,20.81100226]
[1771155009352,20.64496538,89.366,89.279,20.81100226]
[1771155009544,20.64496538,89.366,89.286,20.1709]
[1771155009750,20.77219734,89.363,89.286,20.1709]
[1771155010151,20.75130415,89.362,89.286,20.1709]
[1771155010749,20.75130415,89.362,89.31,10.0828]
[1771155011852,20.75130415,89.362,89.301,10.0837]
[1771155012152,10.4383748,89.362,89.301,10.0837]
[1771155012348,20.70224198,89.361,89.301,10.0837]
[1771155013052,20.70224198,89.358,89.301,10.0837]
[1771155013854,8.31104207,89.357,89.301,10.0837]
[1771155014056,20.70047185,89.355,89.301,10.0837]
[1771155014356,20.69144479,89.353,89.301,10.0837]
[1771155014545,20.69144479,89.351,89.301,10.0837]
[1771155014749,20.69144479,89.349,89.301,10.0837]
[1771155014949,20.69144479,89.347,89.301,10.0837]
[1771155015258,20.68972326,89.345,89.301,10.0837]
[1771155015453,20.68972326,89.343,89.301,10.0837]
[1771155015655,20.68972326,89.341,89.301,10.0837]
[1771155015957,20.68972326,89.339,89.301,10.0837]
[1771155016149,8.31104207,89.338,89.301,10.0837]
[1771155016355,20.68972326,89.339,89.301,10.0837]
[1771155016554,8.31120076,89.338,89.301,10.0837]
[1771155016754,20.68972326,89.339,89.301,10.0837]
[1771155016956,8.31120076,89.338,89.301,10.0837]
[1771155017257,20.68972326,89.339,89.301,10.0837]
[1771155017449,10.0774,89.358,89.301,10.0837]
[1771155017450,20.68831637,89.337,89.301,10.0837]
[1771155017648,20.68831637,89.335,89.301,10.0837]
[1771155017852,8.3110691,89.334,89.301,10.0837]
[1771155018154,8.3110691,89.333,89.301,10.0837]
[1771155018355,20.68831637,89.335,89.301,10.0837]
[1771155018551,8.3102336,89.334,89.301,10.0837]
[1771155018747,20.68831637,89.335,89.301,10.0837]
[1771155018945,8.31023407,89.334,89.301,10.0837]
[1771155019146,20.68831637,89.335,89.301,10.0837]
[1771155019347,28.99389525,89.334,89.301,10.0837]
[1771155019557,20.68371363,89.334,89.301,10.0837]
[1771155023456,8.30775906,89.333,89.301,10.0837]
[1771155023656,8.30775906,89.332,89.301,10.0837]
[1771155023858,20.68371363,89.334,89.301,10.0837]
[1771155024060,8.30775906,89.333,89.301,10.0837]
[1771155024256,20.68371363,89.334,89.301,10.0837]
[1771155024455,8.30411923,89.333,89.301,10.0837]
[1771155024760,20.68371363,89.334,89.301,10.0837]
[1771155024951,8.30411923,89.333,89.301,10.0837]
[1771155025154,20.68371363,89.334,89.301,10.0837]
[1771155025355,8.30415685,89.333,89.301,10.0837]
[1771155025660,20.68371363,89.334,89.301,10.0837]
[1771155025859,8.30376964,89.333,89.301,10.0837]
[1771155026060,20.68371363,89.334,89.301,10.0837]
[1771155026359,8.30382625,89.333,89.301,10.0837]
[1771155026558,20.68371363,89.334,89.301,10.0837]
[1771155026761,8.30345035,89.333,89.301,10.0837]
[1771155026962,20.68371363,89.334,89.301,10.0837]
[1771155027162,28.96624587,89.333,89.301,10.0837]
[1771155027363,20.66278193,89.333,89.301,10.0837]
[1771155030663,20.66278193,89.333,89.306,10.0831]
[1771155050471,20.66278193,89.333,89.272,20.1741]
[1771155051876,20.66278193,89.333,89.3,10.0838]
[1771155058577,10.0784,89.349,89.3,10.0838]
[1771155058578,20.58714827,89.331,89.3,10.0838]
[1771155058875,28.8996848,89.33,89.3,10.0838]
[1771155059077,20.58714827,89.33,89.3,10.0838]
[1771155061282,8.31704287,89.329,89.3,10.0838]
[1771155061483,20.58714827,89.33,89.3,10.0838]
[1771155061785,20.58094068,89.328,89.3,10.0838]
[1771155062380,8.31883681,89.327,89.3,10.0838]
[1771155062580,20.58094068,89.328,89.3,10.0838]
[1771155062775,8.31819642,89.327,89.3,10.0838]
[1771155062978,20.58094068,89.328,89.3,10.0838]
[1771155063174,8.31818473,89.327,89.3,10.0838]
[1771155063374,20.58094068,89.328,89.3,10.0838]
[1771155063579,8.3182326,89.327,89.3,10.0838]
[1771155063779,20.58094068,89.328,89.294,10.0845]
[1771155064083,8.3182326,89.327,89.294,10.0845]
[1771155064384,20.58094068,89.328,89.294,10.0845]
[1771155064573,8.31830617,89.327,89.294,10.0845]
[1771155064774,20.58094068,89.328,89.294,10.0845]
[1771155064976,20.57233492,89.326,89.294,10.0845]
[1771155065882,20.57233492,89.326,89.273,10.0869]
[1771155066183,10.4383748,89.321,89.25,172.61526119]
[1771155066385,20.58741038,89.32,89.25,172.61526119]
[1771155067883,20.58741038,89.32,89.275,10.0866]
[1771155073990,20.58741038,89.32,89.267,10.0876]
[1771155077085,20.58741038,89.32,89.273,10.0869]
[1771155080594,20.55466986,89.33,89.25,172.61526119]
[1771155080803,20.55466986,89.34,89.251,254.66]
[1771155081899,20.55466986,89.34,89.309,10.0828]
[1771155082902,20.55466986,89.34,89.315,10.0821]
[1771155084297,20.58435659,89.353,89.258,33.64]
[1771155084796,20.58435659,89.353,89.321,10.0815]
[1771155093704,20.58435659,89.353,89.281,20.1719]
[1771155094304,20.58435659,89.353,89.308,10.0829]
[1771155100508,20.58435659,89.353,89.314,10.0823]
[1771155107913,20.58435659,89.353,89.268,89.34]
[1771155108912,20.58435659,89.353,89.305,10.0833]
[1771155109611,20.58435659,89.353,89.311,10.0826]
[1771155111811,20.58435659,89.353,89.302,10.0836]
[1771155115414,20.58290671,89.351,89.302,10.0836]
[1771155116309,20.57868742,89.349,89.302,10.0836]
[1771155116509,20.57868742,89.347,89.295,10.0844]
[1771155116718,20.57868742,89.345,89.295,10.0844]
[1771155116913,20.57868742,89.343,89.295,10.0844]
[1771155117111,20.57868742,89.341,89.295,10.0844]
[1771155117312,20.57818246,89.339,89.295,10.0844]
[1771155119417,284.54,89.355,89.295,10.0844]
[1771155119418,20.48393716,89.337,89.295,10.0844]
[1771155120714,20.48393716,89.337,89.301,10.0837]
[1771155121318,20.47349833,89.335,89.301,10.0837]
[1771155121519,20.47349833,89.333,89.301,10.0837]
[1771155123314,28.90343961,89.332,89.301,10.0837]
[1771155123513,28.90343961,89.331,89.301,10.0837]
[1771155123711,20.62043244,89.331,89.301,10.0837]
[1771155124311,20.62043244,89.331,89.273,20.1738]
[1771155124312,20.61235378,89.351,89.308,10.0829]
[1771155124615,20.61235378,89.349,89.279,20.1725]
[1771155124816,20.61235378,89.359,89.279,20.1725]
[1771155125018,8.28893597,89.358,89.279,20.1725]
[1771155125214,8.28893597,89.357,89.279,20.1725]
[1771155125412,8.28893597,89.356,89.279,20.1725]
[1771155125617,8.28893597,89.355,89.279,20.1725]
[1771155125819,8.28893597,89.354,89.279,20.1725]
[1771155126118,8.28893597,89.353,89.279,20.1725]
[1771155126416,20.68510624,89.36,89.283,20.81100226]
[1771155126615,20.68510624,89.358,89.284,251.44]
[1771155126817,20.68510624,89.358,89.284,272.25100226]
[1771155127215,20.68510624,89.358,89.284,251.44]
[1771155127810,20.68510624,89.358,89.316,10.0821]
[1771155128609,20.68510624,89.358,89.322,10.0813]
[1771155130516,20.68510624,89.358,89.289,120.9]
[1771155130717,20.74677705,89.356,89.289,120.9]
[1771155131717,20.74677705,89.356,89.311,10.0825]
[1771155132621,20.74677705,89.356,89.319,10.0817]
[1771155134519,20.74677705,89.356,89.305,10.0833]
[1771155134709,20.74666815,89.354,89.305,10.0833]
[1771155134912,10.0769,89.362,89.305,10.0833]
[1771155134913,20.74666815,89.352,89.305,10.0833]
[1771155135109,20.74666815,89.35,89.305,10.0833]
[1771155135319,20.74633302,89.348,89.305,10.0833]
[1771155138714,20.74633302,89.348,89.269,123.72]
[1771155138715,20.74633302,89.348,89.283,20.1716]
[1771155139519,20.74633302,89.348,89.321,10.0815]
[1771155141622,20.74633302,89.348,89.283,20.1716]
[1771155142024,20.74633302,89.348,89.27,97.98]
[1771155142025,20.74633302,89.348,89.265,20.81100226]
[1771155142321,20.74977346,89.346,89.264,250.74]
[1771155142515,20.74977346,89.344,89.262,250.86]
[1771155142720,20.74977346,89.342,89.262,250.86]
[1771155142921,20.74977346,89.342,89.263,251.1]
[1771155143924,20.74977346,89.342,89.297,10.0841]
[1771155146325,20.74977346,89.342,89.268,251.9]
[1771155147225,20.74977346,89.342,89.273,20.1738]
[1771155148527,20.74977346,89.342,89.309,10.0828]
[1771155155127,20.74977346,89.342,89.314,10.0822]
[1771155155625,20.74977346,89.342,89.321,10.0814]
[1771155155824,20.55451289,89.352,89.321,10.0814]
[1771155156024,20.55451289,89.35,89.287,20.1706]
[1771155156224,20.5834622,89.348,89.311,10.0826]
[1771155161230,20.71874197,89.346,89.311,10.0826]
[1771155164735,20.6536271,89.344,89.311,10.0826]
[1771155168138,20.62734228,89.342,89.311,10.0826]
[1771155172935,20.68804989,89.34,89.303,10.0834]
[1771155173137,8.30883054,89.339,89.279,304.32036929]
[1771155173340,15.64611736,89.337,89.279,304.32036929]
[1771155173540,15.64611736,89.335,89.279,304.32036929]
[1771155174746,15.64611736,89.335,89.308,10.0829]
[1771155175251,15.65849116,89.333,89.308,10.0829]
[1771155176044,15.65849116,89.331,89.308,10.0829]
[1771155179538,15.65849116,89.331,89.279,304.32036929]
[1771155179738,15.70830734,89.329,89.3,10.0838]
[1771155179948,15.70830734,89.327,89.279,304.32036929]
[1771155180143,15.70973738,89.325,89.279,304.32036929]
[1771155180342,15.70973738,89.323,89.279,304.32036929]
[1771155180543,15.70973738,89.321,89.279,304.32036929]
[1771155180745,15.70973738,89.319,89.292,10.0847]
[1771155180945,15.70973738,89.317,89.292,10.0847]
[1771155182545,15.70973738,89.317,89.26,171.78759138]
[1771155182546,3.738e-05,89.317,89.26,171.78759138]
[1771155182844,8.30556732,89.316,89.26,171.78759138]
[1771155183047,10.40762711,89.336,89.26,171.78759138]
[1771155183244,8.30553091,89.335,89.26,171.78759138]
[1771155183547,8.30553091,89.334,89.26,171.78759138]
[1771155183748,8.30553091,89.333,89.287,10.0853]
[1771155184048,8.30553091,89.332,89.287,10.0853]
[1771155184245,8.30553091,89.331,89.287,10.0853]
[1771155184445,7.81498883,89.329,89.287,10.0853]
[1771155184651,7.81498883,89.327,89.287,10.0853]
[1771155184847,7.81498883,89.325,89.287,10.0853]
[1771155185057,7.81498883,89.323,89.287,10.0853]
[1771155185351,7.81324902,89.321,89.287,10.0853]
[1771155185540,8.30553091,89.32,89.287,10.0853]
[1771155185745,7.81324902,89.318,89.287,10.0853]
[1771155187052,7.81324902,89.318,89.279,10.0862]
[1771155187852,7.81324902,89.318,89.285,10.0855]
[1771155189149,7.81324902,89.318,89.275,10.0867]
[1771155192457,7.81324902,89.318,89.266,10.0876]
[1771155194159,7.78436087,89.316,89.266,10.0876]
[1771155194368,10.0812,89.325,89.266,10.0876]
[1771155194369,7.78436087,89.314,89.266,10.0876]
[1771155195264,7.78286358,89.295,89.209,20.1884]
[1771155195462,7.78286358,89.295,89.2,285.41]
[1771155195665,7.78286358,89.295,89.205,1.94950338]
[1771155196166,7.78286358,89.295,89.244,10.0902]
[1771155204371,7.70017821,89.293,89.233,10.0914]
[1771155214868,7.56858464,89.29,89.226,10.0922]
[1771155215063,33.61,89.286,89.17,20.1971]
[1771155215272,7.5671926,89.28,89.119,157.1779]
[1771155215469,142.9,89.296,89.119,157.1779]
[1771155215470,10.0889,89.256,89.186,10.0967]
[1771155215674,7.5671926,89.255,89.149,250.18]
[1771155215974,13.79120054,89.294,89.149,250.18]
[1771155215975,8.30069471,89.267,89.164,1.95027909]
[1771155216171,8.30069471,89.289,89.165,157.0981]
[1771155216371,89.34,89.294,89.165,190.7081]
[1771155216676,7.5671926,89.267,89.165,190.7081]
[1771155216872,7.5671926,89.267,89.233,10.0914]
[1771155217068,7.5671926,89.267,89.184,33.61]
[1771155217069,7.5671926,89.267,89.196,250.7]
[1771155217469,7.5671926,89.267,89.197,20.191]
[1771155217976,7.5671926,89.267,89.236,10.0911]
[1771155218177,7.41472378,89.284,89.236,10.0911]
[1771155219469,7.41472378,89.284,89.226,10.0921]
[1771155220473,7.41472378,89.284,89.218,10.093]
[1771155221773,7.72563643,89.281,89.218,10.093]
[1771155223478,7.72563643,89.281,89.192,20.1922]
[1771155223878,7.72563643,89.281,89.193,106.28]
[1771155224077,7.72563643,89.281,89.192,20.1922]
[1771155224078,7.72563643,89.281,89.171,20.1968]
[1771155224482,7.72563643,89.281,89.172,250.26]
[1771155224677,7.55234874,89.271,89.21,10.0939]
[1771155224881,7.55234874,89.269,89.167,89.34]
[1771155225081,7.55234874,89.267,89.167,89.34]
[1771155225383,7.55115421,89.265,89.167,89.34]
[1771155225678,7.55115421,89.265,89.164,300.80961313]
[1771155225679,7.55115421,89.264,89.164,300.80961313]
[1771155225878,7.55115421,89.261,89.194,10.0958]
[1771155226272,7.42062642,89.26,89.194,10.0958]
[1771155226879,7.42062642,89.26,89.164,300.80961313]
[1771155226880,7.42062642,89.26,89.201,10.0951]
[1771155230377,7.44075617,89.259,89.201,10.0951]
[1771155233282,7.41177348,89.258,89.201,10.0951]
[1771155234489,7.35740426,89.256,89.201,10.0951]
[1771155234686,7.35740426,89.254,89.201,10.0951]
[1771155234885,7.35740426,89.252,89.201,10.0951]
[1771155235185,7.35740426,89.251,89.201,10.0951]
[1771155241592,7.35740426,89.251,89.21,10.094]
[1771155241789,7.32372395,89.262,89.21,10.094]
[1771155241987,7.32372395,89.285,89.168,1.95011516]
[1771155242193,7.32372395,89.283,89.198,20.1908]
[1771155242489,7.31501646,89.281,89.199,89.34]
[1771155242691,7.31501646,89.279,89.199,89.34]
[1771155242894,7.31501646,89.279,89.168,1.95011516]
[1771155242895,7.31501646,89.277,89.221,10.0928]
[1771155243087,7.31501646,89.275,89.18,20.1948]
[1771155243286,7.31387727,89.273,89.18,20.1948]
[1771155243586,7.31387727,89.271,89.18,20.1948]
[1771155243890,7.31387727,89.267,89.21,10.094]
[1771155244090,7.31387727,89.265,89.21,10.094]
[1771155244391,7.31595653,89.263,89.21,10.094]
[1771155244589,7.31595653,89.261,89.216,10.0933]
[1771155247887,7.31595653,89.261,89.209,10.0941]
[1771155248087,7.33934168,89.259,89.209,10.0941]
[1771155248287,7.33397899,89.257,89.209,10.0941]
[1771155249096,7.33294089,89.255,89.209,10.0941]
[1771155253189,10.0872,89.271,89.209,10.0941]
[1771155253190,7.29926909,89.253,89.209,10.0941]
[1771155257198,15.59253944,89.252,89.209,10.0941]
[1771155257398,7.29177438,89.252,89.209,10.0941]
[1771155258498,7.24972988,89.25,89.209,10.0941]
[1771155261302,8.30758764,89.249,89.209,10.0941]
[1771155261500,7.20139471,89.248,89.209,10.0941]
[1771155261697,7.20139471,89.248,89.18,20.1948]
[1771155262405,7.20139471,89.248,89.21,10.094]
[1771155263405,8.31129179,89.247,89.21,10.094]
[1771155263599,7.20139471,89.248,89.21,10.094]
[1771155263903,15.50876371,89.247,89.21,10.094]
[1771155264105,7.19746851,89.247,89.21,10.094]
[1771155264398,8.31464714,89.246,89.21,10.094]
[1771155264704,8.31464714,89.245,89.21,10.094]
[1771155264900,7.19746851,89.247,89.21,10.094]
[1771155265100,8.31464597,89.246,89.21,10.094]
[1771155265299,8.31464597,89.245,89.21,10.094]
[1771155265608,7.16346802,89.243,89.2,10.0952]
[1771155265905,7.16346802,89.241,89.2,10.0952]
[1771155266100,7.16346802,89.239,89.2,10.0952]
[1771155266306,8.31609047,89.238,89.2,10.0952]
[1771155266508,7.16346802,89.239,89.2,10.0952]
[1771155266708,8.31692468,89.238,89.2,10.0952]
[1771155266909,7.16346802,89.239,89.2,10.0952]
[1771155267405,8.31709648,89.238,89.2,10.0952]
[1771155267608,7.16346802,89.239,89.2,10.0952]
[1771155267809,7.16125877,89.237,89.19,10.0962]
[1771155268009,7.16125877,89.235,89.19,10.0962]
[1771155268215,7.16125877,89.233,89.19,10.0962]
[1771155268505,7.13511896,89.231,89.19,10.0962]
[1771155268711,8.31805427,89.23,89.19,10.0962]
[1771155269012,8.31805427,89.229,89.19,10.0962]
[1771155269213,7.13511896,89.231,89.19,10.0962]
[1771155269506,7.13421704,89.229,89.19,10.0962]
[1771155269706,15.45177335,89.228,89.19,10.0962]
[1771155270013,8.31755631,89.227,89.19,10.0962]
[1771155270307,7.16153715,89.225,89.182,10.0971]
[1771155270512,7.16153715,89.225,89.163,20.1987]
[1771155271209,7.16153715,89.225,89.182,10.0972]
[1771155271611,7.16153715,89.225,89.163,20.1987]
[1771155272114,7.16153715,89.225,89.188,10.0965]
[1771155273315,7.19479658,89.223,89.181,10.0972]
[1771155273514,7.19479658,89.221,89.181,10.0972]
[1771155275214,7.07326221,89.219,89.174,10.0981]
[1771155275419,7.07326221,89.217,89.174,10.0981]
[1771155275619,7.07326221,89.215,89.174,10.0981]
[1771155276619,7.07326221,89.215,89.169,10.0987]
[1771155278012,7.05793115,89.226,89.146,20.2027]
[1771155278221,7.07944662,89.224,89.152,188.28]
[1771155279517,7.07944662,89.224,89.177,10.0977]
[1771155280315,7.07944662,89.224,89.146,20.2027]
[1771155280515,8.29966304,89.223,89.146,243.4227]
[1771155280823,7.07944662,89.224,89.146,243.4227]
[1771155281018,7.09197339,89.222,89.146,243.4227]
[1771155281821,7.09197339,89.222,89.171,10.0985]
[1771155283124,10.0924,89.225,89.128,20.2066]
[1771155283125,7.09133186,89.218,89.16,10.0996]
[1771155283422,288.5,89.253,89.16,10.0996]
[1771155283423,7.08735315,89.216,89.16,10.0996]
[1771155284324,7.04566096,89.189,89.147,0.02826416]
[1771155285424,7.04566096,89.189,89.151,0.03555874]
[1771155287223,7.09363044,89.216,89.158,10.0999]
[1771155287626,7.09363044,89.216,89.133,89.36]
[1771155288833,7.09120717,89.214,89.111,211.32]
[1771155289029,7.09120717,89.212,89.111,211.32]
[1771155289328,7.09050223,89.207,89.15,10.1008]
[1771155290329,7.09050223,89.205,89.112,0.03633564]
[1771155290924,7.09050223,89.205,89.14,0.03633564]
[1771155291829,7.09050223,89.205,89.159,10.0998]
[1771155292225,7.09050223,89.205,89.152,0.04329413]
[1771155293830,17.18520223,89.205,89.152,0.04329413]
[1771155294029,7.03452869,89.204,89.152,0.04329413]
[1771155294632,7.036013,89.199,89.152,0.04329413]
[1771155296330,7.036013,89.199,89.143,0.2548177]
[1771155297034,7.036013,89.199,89.165,10.0991]
[1771155300729,13.79928948,89.244,89.113,96.16]
[1771155300730,7.08238899,89.211,89.172,0.04050756]
[1771155300930,7.08238899,89.229,89.172,0.04050756]
[1771155301438,7.08238899,89.229,89.183,0.04654551]
[1771155301837,7.08178056,89.258,89.183,0.04654551]
[1771155302037,7.08178056,89.256,89.183,0.04654551]
[1771155302239,7.08874779,89.255,89.183,0.04654551]
[1771155302734,7.08874779,89.252,89.193,0.03728938]
[1771155302934,7.08874779,89.28,89.193,0.03728938]
[1771155303438,7.08874779,89.28,89.226,0.04319593]
[1771155304133,7.08874779,89.28,89.228,0.04778801]
[1771155304640,7.08874779,89.28,89.179,302.29281792]
[1771155304641,7.08874779,89.28,89.231,10.0916]
[1771155304840,7.10506611,89.295,89.207,89.36]
[1771155305337,7.10506611,89.295,89.239,10.0907]
[1771155306138,7.10506611,89.295,89.24,0.0240639]
[1771155306733,7.10506611,89.295,89.243,10.0903]
[1771155306935,7.10506611,89.295,89.243,10.15966386]
[1771155307134,7.10506611,89.295,89.22,89.36]
[1771155307135,7.10506611,89.295,89.244,0.06936386]
[1771155307738,10.0811,89.326,89.257,0.07491866]
[1771155307932,7.08129091,89.321,89.257,0.07491866]
[1771155308338,7.08129091,89.321,89.268,0.06494492]
[1771155309244,7.08129091,89.321,89.236,0.07034729]
[1771155310637,10.0817,89.32,89.249,10.0896]
[1771155310834,7.08497823,89.319,89.25,0.08036192]
[1771155311645,7.08497823,89.319,89.252,10.17495992]
[1771155311944,7.08497823,89.319,89.253,0.08565992]
[1771155312539,7.07157552,89.316,89.253,0.08565992]
[1771155314642,7.07157552,89.316,89.254,10.0891]
[1771155314842,7.07157552,89.316,89.254,10.32597657]
[1771155315043,7.07157552,89.316,89.255,0.23687657]
[1771155315643,7.07157552,89.316,89.257,0.24219274]
[1771155316245,7.07157552,89.316,89.238,0.24644134]
[1771155317750,7.07157552,89.316,89.25,10.0895]
[1771155319253,7.07157552,89.316,89.26,10.31055287]
[1771155321650,10.0822,89.315,89.25,10.0895]
[1771155321951,7.04976421,89.314,89.25,10.0895]
[1771155324154,7.10569983,89.312,89.25,10.0895]
[1771155325955,7.10569983,89.312,89.25,10.17381726]
[1771155328661,7.15391538,89.304,89.25,0.08431726]
[1771155329361,10.0835,89.303,89.25,0.08431726]
[1771155329659,7.15348484,89.302,89.25,0.08431726]
[1771155331053,7.14781506,89.296,89.242,0.02053519]
[1771155331763,7.14781506,89.296,89.18,33.61]
[1771155331764,7.14781506,89.296,89.185,0.02137941]
[1771155331964,7.14781506,89.296,89.196,0.02137941]
[1771155332364,7.14781506,89.296,89.198,0.10124097]
[1771155332566,10.0855,89.286,89.231,10.0916]
[1771155332761,7.10920497,89.285,89.231,10.0916]
[1771155333861,7.10876958,89.282,89.227,0.10124097]
[1771155334764,7.06177552,89.277,89.227,0.10124097]
[1771155340063,7.06177552,89.277,89.229,0.22488795]
[1771155341064,7.06177552,89.277,89.189,0.24303062]
[1771155341269,7.06177552,89.277,89.191,0.24382957]
[1771155342867,7.15541655,89.276,89.224,10.0924]
[1771155343068,7.15541655,89.276,89.217,0.26335482]
[1771155344870,7.15541655,89.276,89.229,10.0918]
[1771155348572,6.98333669,89.274,89.229,10.0918]
[1771155352471,6.98333669,89.274,89.228,0.56902434]
[1771155358971,6.98333669,89.274,89.229,10.35698522]
[1771155359774,6.98333669,89.274,89.23,0.26809313]
[1771155371602,17.07013669,89.274,89.218,10.0931]
[1771155371799,15.49325942,89.273,89.17,20.1971]
[1771155371999,15.49325942,89.272,89.17,259.8971]
[1771155372299,7.26877865,89.27,89.17,259.8971]
[1771155372498,7.26877865,89.268,89.17,259.8971]
[1771155372702,8.27259746,89.267,89.17,259.8971]
[1771155372903,89.36,89.278,89.17,259.8971]
[1771155372904,7.26877865,89.265,89.17,259.8971]
[1771155373101,7.26877865,89.263,89.17,259.8971]
[1771155373598,7.26896866,89.261,89.17,20.1971]
[1771155373799,7.26896866,89.255,89.198,10.0954]
[1771155374396,7.49269227,89.251,89.198,10.0954]